fUSD/lending_fUSD_20250213
["ID","MTS","AMOUNT","RATE_DAILY","PERIOD"]
[352947929,1739455841968,-500.0,0.00014979,2]
[352947930,1739455841978,-500.0,0.00014979,2]
[352947931,1739455841987,-500.0,0.00014979,2]
[352947932,1739455841996,-500.0,0.00014979,2]
[352947933,1739455842005,-2336.11,0.00014979,2]
[352947934,1739455842014,-500.0,0.00014979,2]
[352947935,1739455842023,-500.0,0.00014979,2]
[352947936,1739455842034,-413.03108018,0.00014979,2]
[352947937,1739455842043,-1050.46,0.00014979,2]
[352947938,1739455842054,-500.0,0.00014979,2]
[352947939,1739455842064,-499.99535576,0.00014979,2]
[352947940,1739455842075,-500.0,0.0001498,2]
[352947941,1739455842084,-819.23,0.0001498,2]
[352947942,1739455842094,-500.0,0.0001498,2]
[352947943,1739455842103,-500.0,0.0001498,2]
[352947944,1739455842115,-500.0,0.0001498,2]
[352947945,1739455842125,-500.0,0.0001498,2]
[352947946,1739455842134,-849.47,0.0001498,2]
[352947947,1739455842144,-639.40818204,0.0001498,2]
[352947948,1739455842467,-271.81181796,0.0001498,2]
[352947949,1739455842479,-500.0,0.0001498,2]
[352947950,1739455842488,-500.0,0.0001498,2]
[352947951,1739455842497,-698.24,0.0001498,2]
[352947952,1739455842506,-500.0,0.0001498,2]
[352947953,1739455842515,-500.0,0.0001498,2]
[352947954,1739455842525,-607.52415793,0.0001498,2]
[352947955,1739455842534,-502.35307878,0.0001498,2]
[352947956,1739455842543,-500.0,0.0001498,2]
[352947957,1739455842552,-666.68,0.0001498,2]
[352947958,1739455842561,-501.02296724,0.0001498,2]
[352947959,1739455842570,-854.58,0.0001498,2]
[352947960,1739455842579,-500.0,0.0001498,2]
[352947961,1739455842589,-503.81812716,0.0001498,2]
[352947962,1739455842598,-500.0,0.0001498,2]
[352947963,1739455842608,-659.75,0.0001498,2]
[352947964,1739455842617,-500.0,0.0001498,2]
[352947965,1739455842627,-817.66,0.0001498,2]
[352947966,1739455842636,-22.3413275,0.0001498,2]
[352947967,1739455842648,-440.49702848,0.0001498,2]
[352947968,1739455842659,-37.16164402,0.0001498,2]
[352947969,1739455842668,-385.09518605,0.0001498,2]
[352947970,1739455842680,-209.29481395,0.0001498,2]
[352947971,1739455842690,-500.0,0.0001498,2]
[352947972,1739455842701,-500.0,0.0001498,2]
[352947973,1739455842710,-500.0,0.0001498,2]
[352947974,1739455842719,-500.0,0.0001498,2]
[352947975,1739455842728,-539.06,0.0001498,2]
[352947976,1739455842738,-502.50643083,0.0001498,2]
[352947977,1739455842747,-680.48,0.0001498,2]
[352947978,1739455842756,-898.49,0.0001498,2]
[352947979,1739455842765,-500.0,0.0001498,2]
[352947980,1739455842775,-500.0,0.0001498,2]
[352947981,1739455842784,-231.6903607,0.0001498,2]
[352947982,1739455842805,-268.3096393,0.0001498,2]
[352947983,1739455842815,-500.0,0.0001498,2]
[352947984,1739455842824,-582.84,0.0001498,2]
[352947985,1739455842833,-557.32,0.0001498,2]
[352947986,1739455842842,-690.52,0.0001498,2]
[352947987,1739455842851,-607.39,0.0001498,2]
[352947988,1739455842861,-247.5538394,0.0001498,2]
[352947989,1739455842870,-516.90635257,0.0001498,2]
[352947990,1739455842880,-500.0,0.0001498,2]
[352947991,1739455842889,-500.0,0.0001498,2]
[352947992,1739455842898,-500.0,0.0001498,2]
[352947993,1739455842908,-757.13,0.0001498,2]
[352947994,1739455842918,-500.0,0.0001498,2]
[352947995,1739455842928,-182.23016873,0.0001498,2]
[352947996,1739455842942,-317.76983127,0.0001498,2]
[352947997,1739455842954,-226.34243459,0.0001498,2]
[352947998,1739455842965,-278.66882181,0.0001498,2]
[352948001,1739455843138,-500.0,0.0001498,2]
[352948003,1739455843159,-500.0,0.0001498,2]
[352948005,1739455843169,-500.0,0.0001498,2]
[352948006,1739455843179,-502.77166775,0.0001498,2]
[352948008,1739455843188,-500.0,0.0001498,2]
[352948010,1739455843198,-500.0,0.0001498,2]
[352948011,1739455843211,-500.0,0.0001498,2]
[352948012,1739455843220,-500.0,0.0001498,2]
[352948013,1739455843230,-502.9691844,0.0001498,2]
[352948014,1739455843239,-500.0,0.0001498,2]
[352948015,1739455843249,-500.0,0.0001498,2]
[352948016,1739455843259,-500.0,0.0001498,2]
[352948017,1739455843268,-696.51,0.0001498,2]
[352948018,1739455843277,-502.86894151,0.0001498,2]
[352948020,1739455843287,-500.0,0.0001498,2]
[352948021,1739455843296,-499.04215468,0.0001498,2]
[352948022,1739455843306,-500.0,0.0001498,2]
[352948023,1739455843316,-500.0,0.0001498,2]
[352948024,1739455843326,-529.83,0.0001498,2]
[352948025,1739455843336,-500.0,0.0001498,2]
[352948026,1739455843345,-517.32,0.0001498,2]
[352948027,1739455843355,-500.0,0.0001498,2]
[352948028,1739455843365,-500.0,0.0001498,2]
[352948029,1739455843374,-500.0,0.0001498,2]
[352948030,1739455843384,-500.0,0.0001498,2]
[352948031,1739455843393,-500.0,0.0001498,2]
[352948032,1739455843402,-701.7,0.0001498,2]
[352948033,1739455843412,-502.83734239,0.0001498,2]
[352948034,1739455843421,-500.0,0.0001498,2]
[352948035,1739455843430,-500.0,0.0001498,2]
[352948036,1739455843440,-500.0,0.0001498,2]
[352948037,1739455843450,-500.0,0.0001498,2]
[352948038,1739455843459,-644.01283154,0.0001498,2]
[352948039,1739455843468,-500.73286795,0.0001498,2]
[352948040,1739455843478,-500.0,0.0001498,2]
[352948041,1739455843488,-530.85,0.0001498,2]
[352948042,1739455843499,-523.55,0.0001498,2]
[352948043,1739455843509,-500.0,0.0001498,2]
[352948044,1739455843518,-857.48,0.0001498,2]
[352948045,1739455843528,-158.276148,0.0001498,2]
[352948046,1739455843537,-500.0,0.0001498,2]
[352948047,1739455843546,-500.0,0.0001498,2]
[352948048,1739455843555,-606.55,0.0001498,2]
[352948049,1739455843564,-1304.65,0.0001498,2]
[352948050,1739455843574,-503.60552066,0.0001498,2]
[352948051,1739455843583,-502.19154231,0.0001498,2]
[352948052,1739455843592,-500.0,0.0001498,2]
[352948053,1739455843601,-1495.8,0.0001498,2]
[352948054,1739455843610,-500.0,0.0001498,2]
[352948055,1739455843620,-500.0,0.0001498,2]
[352948056,1739455843629,-998.43,0.0001498,2]
[352948057,1739455843639,-500.0,0.0001498,2]
[352948058,1739455843648,-711.89,0.0001498,2]
[352948059,1739455843656,-500.0,0.0001498,2]
[352948060,1739455843666,-500.0,0.0001498,2]
[352948061,1739455843675,-500.0,0.0001498,2]
[352948062,1739455843684,-776.46,0.0001498,2]
[352948063,1739455843694,-529.44,0.0001498,2]
[352948064,1739455843706,-578.5058395,0.0001498,2]
[352948067,1739455843715,-500.0,0.0001498,2]
[352948069,1739455843725,-500.0,0.0001498,2]
[352948071,1739455843734,-500.0,0.0001498,2]
[352948073,1739455843743,-500.0,0.0001498,2]
[352948075,1739455843752,-505.90873996,0.0001498,2]
[352948077,1739455843761,-1956.44,0.0001498,2]
[352948078,1739455843771,-922.31,0.0001498,2]
[352948079,1739455843780,-500.0,0.0001498,2]
[352948080,1739455843789,-578.78,0.0001498,2]
[352948082,1739455843798,-174.53569754,0.0001498,2]
[352948084,1739455843811,-1810.53430246,0.0001498,2]
[352948085,1739455843820,-500.0,0.0001498,2]
[352948086,1739455843829,-500.0,0.0001498,2]
[352948087,1739455843839,-500.0,0.0001498,2]
[352948088,1739455843848,-560.55,0.0001498,2]
[352948089,1739455843857,-500.0,0.0001498,2]
[352948090,1739455843866,-500.0,0.0001498,2]
[352948091,1739455843875,-500.0,0.0001498,2]
[352948092,1739455843884,-1100.6,0.0001498,2]
[352948093,1739455843894,-1625.37,0.0001498,2]
[352948094,1739455843903,-258.40744854,0.0001498,2]
[352948095,1739455843915,-241.59255146,0.0001498,2]
[352948096,1739455843925,-500.0,0.0001498,2]
[352948097,1739455843935,-290.00876003,0.0001498,2]
[352948098,1739455843944,-1401.92,0.0001498,2]
[352948099,1739455843957,-500.0,0.0001498,2]
[352948100,1739455843966,-240.45560957,0.0001498,7]
[352948101,1739455843976,-500.0,0.0001498,2]
[352948102,1739455843986,-571.32,0.0001498,2]
[352948103,1739455843996,-193.44406418,0.0001498,2]
[352948104,1739455844005,-582.61,0.0001498,2]
[352948105,1739455844014,-500.0,0.0001498,2]
[352948106,1739455844024,-1213.88,0.0001498,2]
[352948107,1739455844034,-500.0,0.0001498,2]
[352948108,1739455844043,-525.3976657,0.0001498,2]
[352948109,1739455844053,-500.0,0.0001498,2]
[352948110,1739455844062,-500.0,0.0001498,2]
[352948111,1739455844073,-1013.19,0.0001498,2]
[352948112,1739455844084,-500.0,0.0001498,2]
[352948113,1739455844093,-257.35764677,0.0001498,2]
[352948114,1739455844102,-1666.26,0.0001498,2]
[352948115,1739455844113,-674.61,0.0001498,2]
[352948116,1739455844122,-558.75,0.0001498,2]
[352948117,1739455844132,-505.18538945,0.0001498,2]
[352948118,1739455844141,-691.8,0.0001498,2]
[352948119,1739455844150,-500.0,0.0001498,2]
[352948120,1739455844163,-500.0,0.0001498,2]
[352948121,1739455844172,-500.0,0.0001498,2]
[352948122,1739455844182,-572.68208121,0.0001498,2]
[352948123,1739455844191,-500.0,0.0001498,2]
[352948124,1739455844203,-1237.08,0.0001498,2]
[352948125,1739455844213,-500.0,0.0001498,2]
[352948126,1739455844222,-500.0,0.0001498,2]
[352948127,1739455844232,-1369.13,0.0001498,2]
[352948128,1739455844241,-1000.83,0.0001498,2]
[352948129,1739455844250,-612.04,0.0001498,2]
[352948130,1739455844259,-1310.83,0.0001498,2]
[352948131,1739455844268,-500.0,0.0001498,2]
[352948132,1739455844278,-503.70204028,0.0001498,2]
[352948133,1739455844287,-500.0,0.0001498,2]
[352948134,1739455844297,-613.02197224,0.0001498,2]
[352948135,1739455844305,-580.8983735,0.0001498,2]
[352948136,1739455844314,-501.80396869,0.0001498,2]
[352948137,1739455844324,-1319.81,0.0001498,2]
[352948138,1739455844333,-500.0,0.0001498,2]
[352948139,1739455844343,-509.7895694,0.0001498,2]
[352948140,1739455844352,-566.74,0.0001498,2]
[352948141,1739455844361,-898.72,0.0001498,2]
[352948142,1739455844371,-777.94,0.0001498,2]
[352948143,1739455844381,-785.14,0.0001498,2]
[352948144,1739455844390,-500.0,0.0001498,2]
[352948145,1739455844399,-500.0,0.0001498,2]
[352948146,1739455844409,-509.38576358,0.0001498,2]
[352948147,1739455844419,-500.0,0.0001498,2]
[352948148,1739455844428,-532.72,0.0001498,2]
[352948149,1739455844438,-500.0,0.0001498,2]
[352948150,1739455844447,-678.54536794,0.0001498,2]
[352948151,1739455844473,-564.91463206,0.0001498,2]
[352948152,1739455844482,-500.0,0.0001498,2]
[352948153,1739455844492,-973.51,0.0001498,2]
[352948154,1739455844502,-28.7951536,0.0001498,2]
[352948155,1739455844514,-471.2048464,0.0001498,2]
[352948156,1739455844524,-718.53,0.0001498,2]
[352948157,1739455844534,-785.18,0.0001498,2]
[352948158,1739455844543,-503.18359733,0.0001498,2]
[352948159,1739455844553,-500.0,0.0001498,2]
[352948160,1739455844563,-500.0,0.0001498,2]
[352948161,1739455844572,-500.0,0.0001498,2]
[352948162,1739455844583,-500.0,0.0001498,2]
[352948163,1739455844592,-892.71,0.0001498,2]
[352948164,1739455844601,-500.0,0.0001498,2]
[352948165,1739455844610,-799.65,0.0001498,2]
[352948166,1739455844619,-345.60949126,0.0001498,2]
[352948167,1739455844629,-3169.67,0.0001498,2]
[352948168,1739455844639,-1107.81,0.0001498,2]
[352948169,1739455844649,-684.21,0.0001498,2]
[352948170,1739455844658,-500.0,0.0001498,2]
[352948171,1739455844667,-520.67,0.0001498,2]
[352948172,1739455844676,-911.74,0.0001498,2]
[352948173,1739455844686,-500.0,0.0001498,2]
[352948174,1739455844695,-500.0,0.0001498,2]
[352948175,1739455844707,-500.0,0.0001498,2]
[352948176,1739455844716,-1075.71,0.0001498,2]
[352948177,1739455844725,-1706.87,0.0001498,2]
[352948178,1739455844734,-2857.26,0.0001498,2]
[352948179,1739455844745,-500.0,0.0001498,2]
[352948180,1739455844754,-957.64,0.0001498,2]
[352948181,1739455844763,-2567.42,0.0001498,2]
[352948182,1739455844773,-500.0,0.0001498,2]
[352948183,1739455844783,-500.0,0.0001498,2]
[352948184,1739455844792,-500.0,0.0001498,2]
[352948185,1739455844802,-946.28,0.0001498,2]
[352948186,1739455844812,-500.0,0.0001498,2]
[352948187,1739455844821,-510.34141966,0.0001498,2]
[352948188,1739455844831,-3468.11,0.0001498,2]
[352948189,1739455844840,-457.1006272,0.0001498,2]
[352948190,1739455844857,-2638.4093728,0.0001498,2]
[352948191,1739455844866,-500.0,0.0001498,2]
[352948192,1739455844875,-500.0,0.0001498,2]
[352948193,1739455844884,-786.5,0.0001498,2]
[352948194,1739455844894,-500.0,0.0001498,2]
[352948195,1739455844903,-1305.16,0.0001498,2]
[352948196,1739455844912,-1991.04,0.0001498,2]
[352948197,1739455844921,-2032.77,0.0001498,2]
[352948198,1739455844930,-652.12,0.0001498,2]
[352948199,1739455844939,-626.63,0.0001498,2]
[352948200,1739455844948,-924.27,0.0001498,2]
[352948201,1739455844958,-500.0,0.0001498,2]
[352948202,1739455844968,-1469.39320728,0.0001498,2]
[352948203,1739455845407,-605.92421262,0.000143,5]
[352948204,1739455845420,-94.07578738,0.000143,5]
[352948205,1739455845430,-1197.99679272,0.0001498,2]
[352948206,1739455845439,-500.0,0.0001498,2]
[352948207,1739455845449,-502.11193463,0.0001498,2]
[352948208,1739455845460,-500.0,0.0001498,2]
[352948209,1739455845470,-1050.28,0.0001498,2]
[352948210,1739455845479,-601.9,0.0001498,2]
[352948211,1739455845489,-360.28548527,0.0001498,2]
[352948212,1739455845505,-139.71451473,0.0001498,2]
[352948213,1739455845515,-147.80951338,0.0001498,2]
[352948214,1739455845526,-352.19048662,0.0001498,2]
[352948215,1739455845536,-124.68451338,0.0001498,2]
[352948216,1739455845809,-375.31548662,0.0001498,2]
[352948217,1739455845819,-253.9213839,0.0001498,2]
[352948218,1739455845830,-246.0786161,0.0001498,2]
[352948219,1739455845839,-17.30129291,0.0001498,2]
[352948220,1739455845850,-609.74870709,0.0001498,2]
[352948221,1739455845862,-500.0,0.0001498,2]
[352948222,1739455845872,-2642.25,0.0001498,2]
[352948223,1739455845882,-1712.01,0.0001498,2]
[352948224,1739455845892,-2104.5,0.0001498,2]
[352948225,1739455845901,-500.0,0.0001498,2]
[352948226,1739455845910,-393.35012643,0.0001498,2]
[352948227,1739455845919,-1002.32,0.0001498,2]
[352948228,1739455845928,-500.0,0.0001498,2]
[352948229,1739455845938,-987.29,0.0001498,2]
[352948230,1739455845947,-3578.9,0.0001498,2]
[352948231,1739455845959,-824.56,0.0001498,2]
[352948232,1739455845968,-500.0,0.0001498,2]
[352948233,1739455845977,-2314.01,0.0001498,2]
[352948234,1739455845986,-1490.39,0.0001498,2]
[352948235,1739455845996,-500.0,0.0001498,2]
[352948236,1739455846005,-500.0,0.0001498,2]
[352948237,1739455846014,-500.0,0.0001498,2]
[352948238,1739455846025,-500.0,0.0001498,2]
[352948239,1739455846035,-500.0,0.0001498,2]
[352948241,1739455846044,-500.0,0.0001498,2]
[352948242,1739455846054,-500.0,0.0001498,2]
[352948243,1739455846064,-2731.02,0.0001498,2]
[352948246,1739455846076,-500.0,0.0001498,2]
[352948248,1739455846086,-1462.23,0.0001498,2]
[352948250,1739455846095,-501.52382882,0.0001498,2]
[352948251,1739455846104,-286.66974938,0.0001498,2]
[352948253,1739455846116,-2371.32,0.0001498,2]
[352948254,1739455846125,-500.0,0.0001498,2]
[352948256,1739455846135,-1153.43,0.0001498,2]
[352948258,1739455846145,-500.0,0.0001498,2]
[352948259,1739455846158,-1368.08,0.0001498,2]
[352948261,1739455846168,-2582.31,0.0001498,2]
[352948262,1739455846178,-487.57288583,0.0001498,2]
[352948263,1739455846188,-702.96,0.0001498,2]
[352948264,1739455846197,-3699.64,0.0001498,2]
[352948265,1739455846211,-1035.76,0.0001498,2]
[352948266,1739455846220,-500.0,0.0001498,2]
[352948268,1739455846229,-500.0,0.0001498,2]
[352948270,1739455846239,-944.94,0.0001498,2]
[352948271,1739455846248,-500.0,0.0001498,2]
[352948272,1739455846258,-500.0,0.0001498,2]
[352948273,1739455846267,-546.27,0.0001498,2]
[352948274,1739455846277,-704.71,0.0001498,2]
[352948275,1739455846287,-1974.09,0.0001498,2]
[352948276,1739455846296,-577.53,0.0001498,2]
[352948277,1739455846306,-500.0,0.0001498,2]
[352948278,1739455846316,-528.93936446,0.0001498,2]
[352948279,1739455846325,-502.15886099,0.0001498,2]
[352948280,1739455846335,-500.0,0.0001498,2]
[352948281,1739455846344,-540.63988318,0.0001498,2]
[352948282,1739455846354,-500.0,0.0001498,2]
[352948283,1739455846364,-2286.68,0.0001498,2]
[352948284,1739455846374,-500.0,0.0001498,2]
[352948285,1739455846383,-1003.11,0.0001498,2]
[352948286,1739455846392,-635.83,0.0001498,2]
[352948287,1739455846401,-500.0,0.0001498,2]
[352948288,1739455846410,-500.0,0.0001498,2]
[352948289,1739455846421,-872.66,0.0001498,2]
[352948290,1739455846430,-500.0,0.0001498,2]
[352948291,1739455846440,-325.23685188,0.0001498,2]
[352948292,1739455846449,-1764.75,0.0001498,2]
[352948293,1739455846462,-500.0,0.00014981,2]
[352948294,1739455846471,-500.0,0.00014981,2]
[352948295,1739455846483,-500.0,0.00014981,2]
[352948296,1739455846492,-503.9399804,0.00014981,2]
[352948297,1739455846501,-840.54,0.00014981,2]
[352948298,1739455846510,-512.73181918,0.00014981,2]
[352948299,1739455846519,-1049.41,0.00014981,2]
[352948300,1739455846527,-685.36,0.00014981,2]
[352948301,1739455846536,-783.73,0.00014981,2]
[352948302,1739455846549,-500.0,0.00014981,2]
[352948303,1739455846558,-501.0598438,0.00014981,2]
[352948304,1739455846567,-500.0,0.00014981,2]
[352948305,1739455846576,-1185.17,0.00014981,2]
[352948306,1739455846585,-1579.55,0.00014981,2]
[352948308,1739455846594,-1723.51,0.00014981,2]
[352948309,1739455846603,-500.0,0.00014981,2]
[352948311,1739455846612,-500.0,0.00014981,2]
[352948313,1739455846621,-574.61,0.00014981,2]
[352948315,1739455846631,-970.19,0.00014981,2]
[352948316,1739455846640,-1067.21,0.00014981,2]
[352948318,1739455846649,-500.0,0.00014981,2]
[352948319,1739455846658,-500.0,0.00014981,2]
[352948321,1739455846667,-1014.35,0.00014981,2]
[352948322,1739455846677,-1802.42,0.00014981,2]
[352948323,1739455846686,-1480.76,0.00014981,2]
[352948325,1739455846695,-500.0,0.00014981,2]
[352948326,1739455846708,-500.0,0.00014981,2]
[352948327,1739455846718,-1972.41,0.00014981,2]
[352948328,1739455846729,-2213.3,0.00014981,2]
[352948329,1739455846738,-500.0,0.00014981,2]
[352948330,1739455846748,-500.0,0.00014981,2]
[352948331,1739455846757,-1084.38,0.00014981,2]
[352948332,1739455846767,-920.95,0.00014981,2]
[352948333,1739455846776,-500.0,0.00014981,2]
[352948334,1739455846785,-500.0,0.00014981,2]
[352948335,1739455846795,-500.0,0.00014981,2]
[352948336,1739455846804,-1064.59,0.00014981,2]
[352948337,1739455846813,-500.0,0.00014981,2]
[352948338,1739455846823,-641.3,0.00014981,2]
[352948339,1739455846832,-922.22,0.00014981,2]
[352948340,1739455846841,-504.09828916,0.00014981,2]
[352948341,1739455846851,-1901.92,0.00014981,2]
[352948342,1739455846861,-1150.36,0.00014981,2]
[352948343,1739455846870,-500.0,0.00014981,2]
[352948344,1739455846881,-940.9,0.00014981,2]
[352948345,1739455846890,-500.0,0.00014981,2]
[352948346,1739455846900,-1256.96,0.00014981,2]
[352948347,1739455846909,-500.0,0.00014981,2]
[352948348,1739455846919,-1883.12,0.00014981,2]
[352948349,1739455846928,-983.24,0.00014981,2]
[352948350,1739455846938,-180.26852773,0.00014981,2]
[352948351,1739455846948,-1158.54,0.00014981,2]
[352948352,1739455846959,-1715.69,0.00014981,2]
[352948353,1739455846969,-859.7,0.00014981,2]
[352948354,1739455846979,-1758.11,0.00014981,2]
[352948355,1739455846988,-1705.88,0.00014981,2]
[352948356,1739455846998,-1871.35,0.00014981,2]
[352948357,1739455847008,-796.66,0.00014981,2]
[352948358,1739455847017,-1013.94,0.00014981,2]
[352948359,1739455847027,-533.45184065,0.00014981,2]
[352948360,1739455847036,-714.26,0.00014981,2]
[352948361,1739455847046,-500.0,0.00014981,2]
[352948362,1739455847056,-373.85564626,0.00014982,2]
[352948363,1739455847450,-129.97077116,0.00014982,2]
[352948364,1739455847462,-689.17,0.00014982,2]
[352948365,1739455847472,-500.0,0.00014982,2]
[352948366,1739455847482,-500.0,0.00014982,2]
[352948367,1739455847492,-500.0,0.00014982,2]
[352948368,1739455847502,-560.01,0.00014982,2]
[352948369,1739455847512,-803.05,0.00014982,2]
[352948370,1739455847521,-500.0,0.00014982,2]
[352948371,1739455847530,-500.0,0.00014982,2]
[352948372,1739455847539,-500.0,0.00014982,2]
[352948373,1739455847548,-500.0,0.00014982,2]
[352948374,1739455847558,-500.0,0.00014982,2]
[352948375,1739455847568,-549.95583035,0.00014982,2]
[352948376,1739455847577,-500.0,0.00014982,2]
[352948377,1739455847587,-500.0,0.00014982,2]
[352948378,1739455847596,-762.27,0.00014982,2]
[352948379,1739455847605,-500.0,0.00014982,2]
[352948380,1739455847615,-668.98,0.00014982,2]
[352948381,1739455847624,-500.0,0.00014982,2]
[352948382,1739455847634,-500.0,0.00014982,2]
[352948383,1739455847643,-719.05,0.00014982,2]
[352948384,1739455847652,-500.0,0.00014982,2]
[352948385,1739455847661,-500.0,0.00014982,2]
[352948386,1739455847670,-500.0,0.00014982,2]
[352948387,1739455847863,-500.0,0.00014982,2]
[352948388,1739455847874,-506.11978915,0.00014982,2]
[352948389,1739455847884,-500.0,0.00014982,2]
[352948390,1739455847894,-500.0,0.00014982,2]
[352948391,1739455847904,-500.0,0.00014982,2]
[352948392,1739455847913,-500.0,0.00014982,2]
[352948393,1739455847922,-500.13313555,0.00014982,2]
[352948394,1739455847932,-878.87,0.00014982,2]
[352948395,1739455847942,-500.0,0.00014982,2]
[352948396,1739455847953,-500.0,0.00014982,2]
[352948397,1739455847963,-240.88987828,0.00014982,2]
[352948398,1739455847973,-515.23628474,0.00014982,2]
[352948399,1739455847982,-2037.51,0.00014982,2]
[352948400,1739455847992,-500.0,0.00014982,2]
[352948401,1739455848001,-1927.38,0.00014982,2]
[352948402,1739455848011,-923.72,0.00014982,2]
[352948403,1739455848020,-1139.77,0.00014982,2]
[352948404,1739455848030,-500.0,0.00014982,2]
[352948405,1739455848040,-500.0,0.00014982,2]
[352948406,1739455848050,-582.02,0.00014982,2]
[352948407,1739455848059,-500.0,0.00014982,2]
[352948408,1739455848069,-981.41,0.00014982,2]
[352948409,1739455848085,-500.0,0.00014982,2]
[352948410,1739455848095,-500.0,0.00014982,2]
[352948411,1739455848105,-1084.54,0.00014982,2]
[352948412,1739455848116,-1113.67,0.00014982,2]
[352948413,1739455848126,-500.0,0.00014982,2]
[352948414,1739455848136,-500.0,0.00014982,2]
[352948415,1739455848146,-269.61938826,0.00014983,2]
[352948416,1739455848157,-1480.425,0.00014983,2]
[352948417,1739455848168,-173.686,0.00014983,2]
[352948418,1739455848178,-500.0,0.00014983,2]
[352948419,1739455848188,-500.0,0.00014983,2]
[352948420,1739455848199,-500.0,0.00014983,2]
[352948421,1739455848212,-1000.0,0.00014983,2]
[352948422,1739455848223,-1000.0,0.00014983,2]
[352948423,1739455848235,-1000.0,0.00014983,2]
[352948424,1739455848246,-600.0,0.00015,2]
[352948425,1739455848256,-1445.0,0.00015,3]
[352948426,1739455848267,-700.0,0.00015,3]
[352948427,1739455848278,-150.0,0.00015018,2]
[352948428,1739455848288,-5955.84110271,0.00015019,2]
[352948429,1739455848298,-150.0,0.00015032,2]
[352948430,1739455848309,-599.13513,0.0001505,2]
[352948431,1739455848319,-838.40161314,0.00015066,2]
[352948432,1739455848473,-291.24,0.00015066,2]
[352948433,1739455848487,-490.3579485,0.00015066,2]
[352948434,1739455849116,-580.02166535,0.000144,5]
[352948435,1739455849128,-519.97833465,0.000144,5]
[352948436,1739455849138,-4335.84154107,0.00015066,2]
[352948437,1739455849150,-150.0,0.00015097,2]
[352948438,1739455849170,-500.0,0.00015099,2]
[352948439,1739455849180,-524.0,0.000151,2]
[352948440,1739455849190,-15046.07492615,0.000151,3]
[352948441,1739455849203,-572.17159999,0.000151,3]
[352948442,1739455849227,-1897.35152475,0.000151,3]
[352948443,1739455849240,-2876.20292622,0.000151,3]
[352948444,1739455849793,-700.0,0.00014164,2]
[352948445,1739455849803,-1500.0,0.000145,5]
[352948446,1739455849812,-1900.0,0.000146,5]
[352948447,1739455849823,-1066.79,0.0001498,2]
[352948448,1739455849832,-500.0,0.00014981,2]
[352948449,1739455849842,-17521.57754034,0.000151,3]
[352948450,1739455849855,-617.87087302,0.000151,3]
[352948451,1739455849954,-213.04469129,0.000151,3]
[352948452,1739455849965,-84262.14361795,0.000151,3]
[352948453,1739455849976,-1000.0,0.000151,3]
[352948454,1739455849997,-9772.2054,0.000151,3]
[352948455,1739455850008,-790.97724953,0.000151,3]
[352948456,1739455885654,605.7017,8.973e-05,2]
[352948457,1739455907037,2700.055156,8.973e-05,2]
[352948458,1739455907061,317.04159502,8.973e-05,2]
[352948459,1739455907085,1960.54934898,8.973e-05,2]
[352948460,1739455916361,1000.0,8.851e-05,2]
[352948461,1739455970601,736.6424,8.836e-05,2]
[352948462,1739456092131,53171.1019,8.836e-05,2]